fUSD/lending_fUSD_20240409
["ID","MTS","AMOUNT","RATE_DAILY","PERIOD"]
[322024170,1712694648502,-565.88,0.00019726,2]
[322024171,1712694648511,-558.98,0.00019726,2]
[322024172,1712694648521,-180.52,0.00019726,2]
[322024173,1712694648530,-500.0,0.00019726,2]
[322024174,1712694648539,-424.16185285,0.00019726,2]
[322024175,1712694648548,-407.66317222,0.00019726,2]
[322024176,1712694648558,-500.0,0.00019726,2]
[322024177,1712694648567,-629.97,0.00019726,2]
[322024178,1712694648576,-500.0,0.00019726,2]
[322024179,1712694648585,-586.78,0.00019726,2]
[322024180,1712694648595,-500.0,0.00019726,2]
[322024181,1712694648604,-589.59,0.00019726,2]
[322024182,1712694648613,-500.0,0.00019726,2]
[322024183,1712694648623,-240.52,0.00019726,2]
[322024184,1712694648632,-648.73,0.00019726,2]
[322024185,1712694648641,-500.0,0.00019726,2]
[322024186,1712694648650,-248.51,0.00019726,2]
[322024187,1712694648659,-513.81,0.00019726,2]
[322024188,1712694648668,-500.0,0.00019726,2]
[322024189,1712694648677,-500.0,0.00019726,2]
[322024190,1712694648687,-834.72,0.00019726,2]
[322024191,1712694648700,-500.0,0.00019726,2]
[322024192,1712694648709,-500.0,0.00019726,2]
[322024193,1712694648718,-500.0,0.00019726,2]
[322024194,1712694648728,-1415.95,0.00019726,2]
[322024195,1712694648738,-778.67,0.00019726,2]
[322024196,1712694648748,-500.0,0.00019726,2]
[322024197,1712694648757,-500.0,0.00019726,2]
[322024198,1712694648767,-500.0,0.00019726,2]
[322024199,1712694648986,-541.13,0.00019726,2]
[322024200,1712694648995,-500.0,0.00019726,2]
[322024201,1712694649004,-447.71,0.00019726,2]
[322024202,1712694649013,-500.0,0.00019726,2]
[322024203,1712694649022,-500.0,0.00019726,2]
[322024204,1712694649032,-500.0,0.00019726,2]
[322024205,1712694649041,-500.0,0.00019726,2]
[322024206,1712694649051,-500.0,0.00019726,2]
[322024207,1712694649064,-3371.93,0.00019726,2]
[322024208,1712694649073,-500.0,0.00019726,2]
[322024209,1712694649082,-500.0,0.00019726,2]
[322024210,1712694649092,-500.0,0.00019726,2]
[322024211,1712694649101,-500.0,0.00019726,2]
[322024212,1712694649111,-500.0,0.00019726,2]
[322024213,1712694649120,-500.0,0.00019726,2]
[322024214,1712694649130,-485.62,0.00019726,2]
[322024215,1712694649139,-622.72,0.00019726,2]
[322024216,1712694649148,-500.0,0.00019726,2]
[322024217,1712694649155,-500.0,0.00019726,2]
[322024218,1712694649164,-500.0,0.00019726,2]
[322024219,1712694649173,-500.0,0.00019726,2]
[322024220,1712694649182,-744.61,0.00019726,2]
[322024221,1712694649191,-500.0,0.00019726,2]
[322024222,1712694649200,-500.0,0.00019726,2]
[322024223,1712694649209,-1900.75,0.00019726,2]
[322024224,1712694649219,-500.0,0.00019726,2]
[322024225,1712694649228,-500.0,0.00019726,2]
[322024226,1712694649237,-304.12,0.00019726,2]
[322024227,1712694649246,-500.0,0.00019726,2]
[322024228,1712694649255,-500.0,0.00019726,2]
[322024229,1712694649264,-317.51422606,0.00019726,2]
[322024230,1712694649274,-500.0,0.00019726,2]
[322024231,1712694649284,-500.0,0.00019726,2]
[322024232,1712694649293,-500.0,0.00019726,2]
[322024233,1712694649303,-281.64,0.00019726,2]
[322024234,1712694649316,-280.83,0.00019726,2]
[322024235,1712694649325,-506.88,0.00019726,2]
[322024236,1712694649334,-409.75,0.00019726,2]
[322024237,1712694649343,-259.53,0.00019726,2]
[322024238,1712694649352,-799.75,0.00019726,2]
[322024239,1712694649361,-500.0,0.00019726,2]
[322024240,1712694649371,-500.0,0.00019726,2]
[322024241,1712694649381,-500.0,0.00019726,2]
[322024242,1712694649390,-500.0,0.00019726,2]
[322024243,1712694649399,-500.0,0.00019726,2]
[322024244,1712694649408,-500.0,0.00019726,2]
[322024245,1712694649418,-500.0,0.00019726,2]
[322024246,1712694649427,-500.0,0.00019726,2]
[322024247,1712694649437,-185.15,0.00019726,2]
[322024248,1712694649446,-500.0,0.00019726,2]
[322024249,1712694649455,-500.0,0.00019726,2]
[322024250,1712694649464,-500.0,0.00019726,2]
[322024251,1712694649474,-315.43,0.00019726,2]
[322024252,1712694649483,-500.0,0.00019726,2]
[322024253,1712694649492,-500.0,0.00019726,2]
[322024254,1712694649501,-260.97,0.00019726,2]
[322024255,1712694649510,-500.0,0.00019726,2]
[322024256,1712694649519,-500.0,0.00019726,2]
[322024257,1712694649528,-500.0,0.00019726,2]
[322024258,1712694649537,-2334.06,0.00019726,2]
[322024259,1712694649546,-500.0,0.00019726,2]
[322024260,1712694649555,-500.0,0.00019726,2]
[322024261,1712694649568,-847.18,0.00019726,2]
[322024262,1712694649577,-625.07,0.00019726,2]
[322024263,1712694649586,-500.0,0.00019726,2]
[322024264,1712694649595,-520.95,0.00019726,2]
[322024265,1712694649604,-500.0,0.00019726,2]
[322024266,1712694649613,-608.5,0.00019726,2]
[322024267,1712694649622,-627.91,0.00019726,2]
[322024268,1712694649632,-500.0,0.00019726,2]
[322024269,1712694649640,-604.01,0.00019726,2]
[322024270,1712694649650,-500.0,0.00019726,2]
[322024271,1712694649659,-564.56,0.00019726,2]
[322024272,1712694649668,-417.85,0.00019726,2]
[322024273,1712694649677,-912.43,0.00019726,2]
[322024274,1712694649686,-1301.58,0.00019726,2]
[322024275,1712694649699,-1093.08,0.00019726,2]
[322024276,1712694649707,-500.0,0.00019726,2]
[322024277,1712694649716,-500.0,0.00019726,2]
[322024278,1712694649725,-500.0,0.00019726,2]
[322024279,1712694649735,-3133.77,0.00019726,2]
[322024280,1712694649744,-500.0,0.00019726,2]
[322024281,1712694649754,-500.0,0.00019726,2]
[322024282,1712694649763,-500.0,0.00019726,2]
[322024283,1712694649772,-500.0,0.00019726,2]
[322024284,1712694649782,-500.0,0.00019726,2]
[322024285,1712694649791,-507.73,0.00019726,2]
[322024286,1712694649801,-275.70834456,0.00019726,2]
[322024287,1712694649811,-500.0,0.00019726,2]
[322024288,1712694649819,-500.0,0.00019726,2]
[322024289,1712694649828,-500.0,0.00019726,2]
[322024290,1712694649837,-1187.26,0.00019726,2]
[322024291,1712694649846,-442.70821553,0.00019726,2]
[322024292,1712694649855,-500.0,0.00019726,2]
[322024293,1712694649865,-500.0,0.00019726,2]
[322024294,1712694649874,-464.35,0.00019726,2]
[322024295,1712694649883,-500.0,0.00019726,2]
[322024296,1712694649892,-719.31,0.00019726,2]
[322024297,1712694649901,-500.0,0.00019726,2]
[322024298,1712694649911,-650.2,0.00019726,2]
[322024299,1712694649922,-653.42,0.00019726,2]
[322024300,1712694649931,-500.0,0.00019726,2]
[322024301,1712694649942,-500.0,0.00019726,2]
[322024302,1712694649953,-500.0,0.00019726,2]
[322024303,1712694649963,-938.99,0.00019726,2]
[322024304,1712694649974,-500.0,0.00019726,2]
[322024305,1712694649983,-500.0,0.00019726,2]
[322024306,1712694649992,-500.0,0.00019726,2]
[322024307,1712694650001,-500.0,0.00019726,2]
[322024308,1712694650010,-500.0,0.00019726,2]
[322024309,1712694650019,-500.0,0.00019726,2]
[322024310,1712694650028,-419.15,0.00019726,2]
[322024311,1712694650037,-392.16,0.00019726,2]
[322024312,1712694650047,-500.0,0.00019726,2]
[322024313,1712694650056,-658.29,0.00019726,2]
[322024314,1712694650067,-563.13,0.00019726,2]
[322024315,1712694650077,-500.0,0.00019726,2]
[322024316,1712694650086,-500.0,0.00019726,2]
[322024317,1712694650096,-500.0,0.00019726,2]
[322024318,1712694650105,-4123.74,0.00019726,2]
[322024319,1712694650115,-2703.7,0.00019726,2]
[322024320,1712694650124,-500.0,0.00019726,2]
[322024321,1712694650132,-500.0,0.00019726,2]
[322024322,1712694650142,-1728.59,0.00019726,2]
[322024323,1712694650151,-209.88,0.00019726,2]
[322024324,1712694650160,-500.0,0.00019726,2]
[322024325,1712694650169,-500.0,0.00019726,2]
[322024326,1712694650178,-500.0,0.00019726,2]
[322024327,1712694650187,-500.0,0.00019726,2]
[322024328,1712694650196,-500.0,0.00019726,2]
[322024329,1712694650205,-500.0,0.00019726,2]
[322024330,1712694650214,-500.0,0.00019726,2]
[322024331,1712694650223,-500.0,0.00019726,2]
[322024332,1712694650232,-994.74,0.00019726,2]
[322024333,1712694650241,-500.0,0.00019726,2]
[322024334,1712694650250,-1585.91816996,0.00019859,2]
[322024335,1712694650259,-1120.93688741,0.000199,2]
[322024336,1712694650269,-3528.7178337,0.00019922,2]
[322024337,1712694650279,-684.58967,0.0002,2]
[322024338,1712694650288,-500.0,0.0002,2]
[322024339,1712694650298,-373.19766039,0.0002,2]
[322024340,1712694650307,-500.0,0.0002,2]
[322024341,1712694650318,-500.0,0.0002,2]
[322024342,1712694650327,-328.26,0.0002,2]
[322024343,1712694650337,-500.0,0.0002,2]
[322024344,1712694650346,-500.0,0.0002,2]
[322024345,1712694650355,-500.0,0.0002,2]
[322024346,1712694650364,-500.0,0.0002,2]
[322024347,1712694650373,-500.0,0.0002,2]
[322024348,1712694650383,-500.0,0.0002,2]
[322024349,1712694650392,-513.96,0.0002,2]
[322024350,1712694650401,-617.84,0.0002,2]
[322024351,1712694650411,-500.0,0.0002,2]
[322024352,1712694650420,-500.0,0.0002,2]
[322024353,1712694650429,-627.87206087,0.0002,2]
[322024354,1712694650438,-533.5,0.0002,2]
[322024355,1712694650447,-224.45,0.0002,2]
[322024356,1712694650456,-500.0,0.0002,2]
[322024357,1712694650466,-500.0,0.0002,2]
[322024358,1712694650475,-173.16,0.0002,2]
[322024359,1712694650485,-182.44,0.0002,2]
[322024360,1712694650495,-354.94,0.0002,2]
[322024361,1712694650504,-209.14,0.0002,2]
[322024362,1712694650513,-478.99,0.0002,2]
[322024363,1712694650523,-500.0,0.0002,2]
[322024364,1712694650532,-500.0,0.0002,2]
[322024365,1712694650541,-427.64,0.0002,2]
[322024366,1712694650550,-469.96,0.0002,2]
[322024367,1712694650560,-499.1,0.0002,2]
[322024368,1712694650569,-500.0,0.0002,2]
[322024369,1712694650579,-433.09,0.0002,2]
[322024370,1712694650589,-427.81,0.0002,2]
[322024371,1712694650598,-322.35,0.0002,2]
[322024372,1712694650608,-500.0,0.0002,2]
[322024373,1712694650617,-194.26,0.0002,2]
[322024374,1712694650627,-236.85,0.0002,2]
[322024375,1712694650636,-500.0,0.0002,2]
[322024376,1712694650646,-164.47,0.0002,2]
[322024377,1712694650655,-363.69,0.0002,2]
[322024378,1712694650664,-500.0,0.0002,2]
[322024379,1712694650675,-500.0,0.0002,2]
[322024380,1712694650695,-500.0,0.0002,2]
[322024381,1712694650715,-648.73,0.0002,2]
[322024382,1712694650724,-611.39,0.0002,2]
[322024383,1712694650733,-500.0,0.0002,2]
[322024384,1712694650743,-834.72,0.0002,2]
[322024385,1712694650752,-500.0,0.0002,2]
[322024386,1712694650762,-500.0,0.0002,2]
[322024387,1712694650771,-500.0,0.0002,2]
[322024388,1712694650780,-1415.95,0.0002,2]
[322024389,1712694650789,-778.67,0.0002,2]
[322024390,1712694650798,-500.0,0.0002,2]
[322024391,1712694650808,-500.0,0.0002,2]
[322024392,1712694650817,-541.13,0.0002,2]
[322024393,1712694650827,-500.0,0.0002,2]
[322024394,1712694650836,-616.57,0.0002,2]
[322024395,1712694650846,-500.0,0.0002,2]
[322024396,1712694650856,-500.29258366,0.0002,2]
[322024397,1712694650866,-500.0,0.0002,2]
[322024398,1712694650876,-3371.93,0.0002,2]
[322024399,1712694650886,-500.0,0.0002,2]
[322024400,1712694650895,-500.0,0.0002,2]
[322024401,1712694650904,-402.04,0.0002,2]
[322024402,1712694650914,-500.0,0.0002,2]
[322024403,1712694650923,-500.0,0.0002,2]
[322024404,1712694650931,-500.0,0.0002,2]
[322024405,1712694650940,-500.0,0.0002,2]
[322024406,1712694650950,-476.72,0.0002,2]
[322024407,1712694650959,-744.61,0.0002,2]
[322024408,1712694650969,-500.0,0.0002,2]
[322024409,1712694650978,-500.0,0.0002,2]
[322024410,1712694650988,-1900.75,0.0002,2]
[322024411,1712694650996,-500.0,0.0002,2]
[322024412,1712694651005,-500.0,0.0002,2]
[322024413,1712694651014,-500.0,0.0002,2]
[322024414,1712694651023,-500.0,0.0002,2]
[322024415,1712694651032,-500.0,0.0002,2]
[322024416,1712694651041,-500.0,0.0002,2]
[322024417,1712694651051,-799.75,0.0002,2]
[322024418,1712694651062,-500.0,0.0002,2]
[322024419,1712694651072,-500.0,0.0002,2]
[322024420,1712694651081,-500.0,0.0002,2]
[322024421,1712694651091,-500.0,0.0002,2]
[322024422,1712694651101,-500.0,0.0002,2]
[322024423,1712694651110,-500.0,0.0002,2]
[322024424,1712694651119,-500.0,0.0002,2]
[322024425,1712694651128,-500.0,0.0002,2]
[322024426,1712694651137,-500.0,0.0002,2]
[322024427,1712694651147,-433.66,0.0002,2]
[322024428,1712694651156,-500.0,0.0002,2]
[322024429,1712694651165,-500.0,0.0002,2]
[322024430,1712694651174,-219.27,0.0002,2]
[322024431,1712694651183,-500.0,0.0002,2]
[322024432,1712694651192,-2334.06,0.0002,2]
[322024433,1712694651202,-500.0,0.0002,2]
[322024434,1712694651210,-169.81,0.0002,2]
[322024435,1712694651220,-847.18,0.0002,2]
[322024436,1712694651232,-301.66,0.0002,2]
[322024437,1712694651241,-500.0,0.0002,2]
[322024438,1712694651250,-627.91,0.0002,2]
[322024439,1712694651260,-500.0,0.0002,2]
[322024440,1712694651270,-604.01,0.0002,2]
[322024441,1712694651279,-500.0,0.0002,2]
[322024442,1712694651287,-564.56,0.0002,2]
[322024443,1712694651296,-912.43,0.0002,2]
[322024444,1712694651305,-1301.58,0.0002,2]
[322024445,1712694651316,-1093.08,0.0002,2]
[322024446,1712694651325,-500.0,0.0002,2]
[322024447,1712694651335,-500.0,0.0002,2]
[322024448,1712694651344,-500.0,0.0002,2]
[322024449,1712694651354,-3133.77,0.0002,2]
[322024450,1712694651363,-500.0,0.0002,2]
[322024451,1712694651373,-500.0,0.0002,2]
[322024452,1712694651382,-500.0,0.0002,2]
[322024453,1712694651392,-500.0,0.0002,2]
[322024454,1712694651402,-500.0,0.0002,2]
[322024455,1712694651412,-500.0,0.0002,2]
[322024456,1712694651422,-500.0,0.0002,2]
[322024457,1712694651431,-500.0,0.0002,2]
[322024458,1712694651441,-1187.26,0.0002,2]
[322024459,1712694651451,-500.0,0.0002,2]
[322024460,1712694651460,-500.0,0.0002,2]
[322024461,1712694651470,-500.0,0.0002,2]
[322024462,1712694651480,-719.31,0.0002,2]
[322024463,1712694651489,-500.0,0.0002,2]
[322024464,1712694651499,-650.2,0.0002,2]
[322024465,1712694651509,-653.42,0.0002,2]
[322024466,1712694651520,-500.0,0.0002,2]
[322024467,1712694651530,-374.98,0.0002,2]
[322024468,1712694651540,-354.73,0.0002,2]
[322024469,1712694651551,-938.99,0.0002,2]
[322024470,1712694651561,-500.0,0.0002,2]
[322024471,1712694651571,-423.66,0.0002,2]
[322024472,1712694651581,-500.0,0.0002,2]
[322024473,1712694651591,-500.0,0.0002,2]
[322024475,1712694651600,-500.0,0.0002,2]
[322024476,1712694651610,-500.0,0.0002,2]
[322024477,1712694651620,-500.0,0.0002,2]
[322024478,1712694651630,-658.29,0.0002,2]
[322024479,1712694651640,-563.13,0.0002,2]
[322024480,1712694651650,-323.91,0.0002,2]
[322024481,1712694651660,-486.32,0.0002,2]
[322024482,1712694651670,-500.0,0.0002,2]
[322024483,1712694651679,-4123.74,0.0002,2]
[322024484,1712694651688,-2703.7,0.0002,2]
[322024485,1712694651699,-500.0,0.0002,2]
[322024486,1712694651709,-1728.59,0.0002,2]
[322024487,1712694651719,-500.0,0.0002,2]
[322024488,1712694651729,-500.0,0.0002,2]
[322024489,1712694651738,-500.0,0.0002,2]
[322024490,1712694651748,-344.75,0.0002,2]
[322024491,1712694651758,-994.74,0.0002,2]
[322024492,1712694651768,-323.07,0.0002,2]
[322024493,1712694651777,-1120.93688739,0.00020073,2]
[322024494,1712694651787,-1585.91816996,0.00020119,2]
[322024495,1712694651796,-3528.7178337,0.00020167,2]
[322024496,1712694651806,-153.40766547,0.00020173,2]
[322024497,1712694651816,-211.57,0.00020181,2]
[322024498,1712694651825,-2742.0,0.000202,2]
[322024499,1712694651834,-1120.93688739,0.00020245,2]
[322024500,1712694651843,-500.0,0.00020273,2]
[322024501,1712694651852,-250.78010728,0.00020273,2]
[322024502,1712694651861,-214.77,0.00020273,2]
[322024503,1712694651871,-196.06,0.00020273,2]
[322024504,1712694651880,-337.54,0.00020273,2]
[322024505,1712694651889,-419.23,0.00020273,2]
[322024506,1712694651899,-351.65,0.00020273,2]
[322024507,1712694651908,-491.41,0.00020273,2]
[322024508,1712694651917,-500.0,0.00020273,2]
[322024509,1712694651926,-500.0,0.00020273,2]
[322024510,1712694651935,-500.0,0.00020273,2]
[322024511,1712694651944,-648.73,0.00020273,2]
[322024512,1712694651953,-500.0,0.00020273,2]
[322024513,1712694651963,-834.72,0.00020273,2]
[322024514,1712694651972,-500.0,0.00020273,2]
[322024515,1712694651981,-500.0,0.00020273,2]
[322024516,1712694651990,-778.67,0.00020273,2]
[322024517,1712694651999,-1415.95,0.00020273,2]
[322024518,1712694652007,-500.0,0.00020273,2]
[322024519,1712694652016,-537.84,0.00020273,2]
[322024520,1712694652025,-541.13,0.00020273,2]
[322024521,1712694652034,-516.13,0.00020273,2]
[322024522,1712694652043,-573.32,0.00020273,2]
[322024523,1712694652052,-576.37,0.00020273,2]
[322024524,1712694652063,-3371.93,0.00020273,2]
[322024525,1712694652072,-500.0,0.00020273,2]
[322024526,1712694652081,-500.0,0.00020273,2]
[322024527,1712694652090,-500.0,0.00020273,2]
[322024528,1712694652099,-500.0,0.00020273,2]
[322024529,1712694652109,-189.72,0.00020273,2]
[322024530,1712694652119,-744.61,0.00020273,2]
[322024531,1712694652129,-314.08,0.00020273,2]
[322024532,1712694652139,-500.0,0.00020273,2]
[322024533,1712694652148,-1900.75,0.00020273,2]
[322024534,1712694652157,-500.0,0.00020273,2]
[322024535,1712694652166,-500.0,0.00020273,2]
[322024536,1712694652176,-281.11,0.00020273,2]
[322024537,1712694652186,-500.0,0.00020273,2]
[322024538,1712694652195,-500.0,0.00020273,2]
[322024539,1712694652204,-500.0,0.00020273,2]
[322024540,1712694652214,-799.75,0.00020273,2]
[322024541,1712694652224,-500.0,0.00020273,2]
[322024542,1712694652233,-500.0,0.00020273,2]
[322024543,1712694652242,-500.0,0.00020273,2]
[322024544,1712694652252,-639.73,0.00020273,2]
[322024545,1712694652261,-500.0,0.00020273,2]
[322024546,1712694652271,-500.0,0.00020273,2]
[322024547,1712694652280,-500.0,0.00020273,2]
[322024548,1712694652290,-500.0,0.00020273,2]
[322024549,1712694652300,-500.0,0.00020273,2]
[322024550,1712694652310,-500.0,0.00020273,2]
[322024551,1712694652320,-500.0,0.00020273,2]
[322024552,1712694652329,-500.0,0.00020273,2]
[322024553,1712694652338,-406.7,0.00020273,2]
[322024554,1712694652348,-2334.06,0.00020273,2]
[322024555,1712694652357,-847.18,0.00020273,2]
[322024556,1712694652366,-500.0,0.00020273,2]
[322024557,1712694652376,-627.91,0.00020273,2]
[322024558,1712694652385,-500.0,0.00020273,2]
[322024559,1712694652395,-604.01,0.00020273,2]
[322024560,1712694652404,-500.0,0.00020273,2]
[322024561,1712694652414,-564.56,0.00020273,2]
[322024562,1712694652424,-912.43,0.00020273,2]
[322024563,1712694652433,-1301.58,0.00020273,2]
[322024564,1712694652443,-1093.08,0.00020273,2]
[322024565,1712694652453,-500.0,0.00020273,2]
[322024566,1712694652463,-500.0,0.00020273,2]
[322024567,1712694652473,-279.03,0.00020273,2]
[322024568,1712694652482,-3133.77,0.00020273,2]
[322024569,1712694652492,-500.0,0.00020273,2]
[322024570,1712694652502,-500.0,0.00020273,2]
[322024571,1712694652512,-500.0,0.00020273,2]
[322024572,1712694652522,-500.0,0.00020273,2]
[322024573,1712694652532,-354.67,0.00020273,2]
[322024574,1712694652542,-512.92440963,0.00020273,2]
[322024575,1712694652659,-500.0,0.00020273,2]
[322024576,1712694652669,-500.0,0.00020273,2]
[322024577,1712694652679,-1187.26,0.00020273,2]
[322024578,1712694652688,-500.0,0.00020273,2]
[322024579,1712694652701,-220.78,0.00020273,2]
[322024580,1712694652710,-500.0,0.00020273,2]
[322024581,1712694652720,-719.31,0.00020273,2]
[322024582,1712694652730,-500.0,0.00020273,2]
[322024583,1712694652739,-650.2,0.00020273,2]
[322024584,1712694652748,-653.42,0.00020273,2]
[322024585,1712694652758,-500.0,0.00020273,2]
[322024586,1712694652767,-938.99,0.00020273,2]
[322024587,1712694652778,-500.0,0.00020273,2]
[322024588,1712694652788,-500.0,0.00020273,2]
[322024589,1712694652797,-392.9,0.00020273,2]
[322024590,1712694652807,-567.82,0.00020273,2]
[322024591,1712694652817,-500.0,0.00020273,2]
[322024592,1712694652826,-500.0,0.00020273,2]
[322024593,1712694652836,-658.29,0.00020273,2]
[322024594,1712694652845,-563.13,0.00020273,2]
[322024595,1712694652855,-500.0,0.00020273,2]
[322024596,1712694652865,-4123.74,0.00020273,2]
[322024597,1712694652874,-2703.7,0.00020273,2]
[322024598,1712694652883,-500.0,0.00020273,2]
[322024599,1712694652893,-1728.59,0.00020273,2]
[322024600,1712694652903,-500.0,0.00020273,2]
[322024601,1712694652912,-500.0,0.00020273,2]
[322024602,1712694652922,-500.0,0.00020273,2]
[322024603,1712694652931,-994.74,0.00020273,2]
[322024604,1712694652941,-216.0,0.00020365,2]
[322024605,1712694652950,-1585.91816996,0.00020379,2]
[322024606,1712694652959,-3528.7178337,0.00020411,2]
[322024607,1712694652968,-1120.93688739,0.00020418,2]
[322024608,1712694652981,-176.96432837,0.00020447,2]
[322024609,1712694652990,-150.0,0.000205,2]
[322024610,1712694653000,-153.40766547,0.00020525,2]
[322024611,1712694653009,-532.0,0.00020547,2]
[322024612,1712694653018,-544.0,0.00020547,2]
[322024613,1712694653027,-500.0,0.00020547,2]
[322024614,1712694653037,-465.57202918,0.00020547,2]
[322024615,1712694653046,-460.03,0.00020547,2]
[322024616,1712694653055,-500.0,0.00020547,2]
[322024617,1712694653066,-648.73,0.00020547,2]
[322024618,1712694653075,-500.0,0.00020547,2]
[322024619,1712694653085,-834.72,0.00020547,2]
[322024620,1712694653094,-500.0,0.00020547,2]
[322024621,1712694653104,-613.28,0.00020547,2]
[322024622,1712694653113,-778.67,0.00020547,2]
[322024623,1712694653122,-1415.95,0.00020547,2]
[322024624,1712694653131,-500.0,0.00020547,2]
[322024625,1712694653141,-541.13,0.00020547,2]
[322024626,1712694653150,-3371.93,0.00020547,2]
[322024627,1712694653160,-500.0,0.00020547,2]
[322024628,1712694653169,-500.0,0.00020547,2]
[322024629,1712694653178,-500.0,0.00020547,2]
[322024630,1712694653188,-500.0,0.00020547,2]
[322024631,1712694653198,-744.61,0.00020547,2]
[322024632,1712694653207,-500.0,0.00020547,2]
[322024633,1712694653216,-1900.75,0.00020547,2]
[322024634,1712694653226,-500.0,0.00020547,2]
[322024635,1712694653235,-500.0,0.00020547,2]
[322024636,1712694653245,-500.0,0.00020547,2]
[322024637,1712694653255,-500.0,0.00020547,2]
[322024638,1712694653265,-500.0,0.00020547,2]
[322024639,1712694653275,-799.75,0.00020547,2]
[322024640,1712694653284,-500.0,0.00020547,2]
[322024641,1712694653293,-500.0,0.00020547,2]
[322024642,1712694653303,-500.0,0.00020547,2]
[322024643,1712694653313,-500.0,0.00020547,2]
[322024644,1712694653323,-500.0,0.00020547,2]
[322024645,1712694653333,-500.0,0.00020547,2]
[322024646,1712694653342,-500.0,0.00020547,2]
[322024647,1712694653352,-416.67,0.00020547,2]
[322024648,1712694653361,-237.79,0.00020547,2]
[322024649,1712694653370,-349.23169564,0.00020547,2]
[322024650,1712694653380,-500.0,0.00020547,2]
[322024651,1712694653390,-2334.06,0.00020547,2]
[322024652,1712694653399,-847.18,0.00020547,2]
[322024653,1712694653409,-500.0,0.00020547,2]
[322024654,1712694653418,-627.91,0.00020547,2]
[322024655,1712694653428,-500.0,0.00020547,2]
[322024656,1712694653437,-604.01,0.00020547,2]
[322024657,1712694653446,-500.0,0.00020547,2]
[322024658,1712694653455,-564.56,0.00020547,2]
[322024659,1712694653465,-912.43,0.00020547,2]
[322024660,1712694653474,-1301.58,0.00020547,2]
[322024661,1712694653484,-1093.08,0.00020547,2]
[322024662,1712694653493,-592.21,0.00020547,2]
[322024663,1712694653503,-500.0,0.00020547,2]
[322024664,1712694653513,-3133.77,0.00020547,2]
[322024665,1712694653523,-629.14440787,0.00020547,2]
[322024666,1712694653533,-500.0,0.00020547,2]
[322024667,1712694653542,-500.0,0.00020547,2]
[322024668,1712694653552,-500.0,0.00020547,2]
[322024669,1712694653562,-438.48,0.00020547,2]
[322024670,1712694653571,-500.0,0.00020547,2]